bitfinex-derivatives/quotes_SOLF0:USTF0_20241015
["timestamp","ask_amount","ask_price","bid_price","bid_amount"]
[1728997144980,10.0,153.57,153.54,3.2572]
[1728997145382,10.0,153.57,153.52,10.0]
[1728997145581,10.0,153.57,153.52,3.2576]
[1728997145983,10.0,153.55,153.52,3.2576]
[1728997146491,10.0,153.55,153.53,3.2574]
[1728997148390,10.0,153.55,153.52,3.2576]
[1728997150694,10.0,153.55,153.51,3.2579]
[1728997151594,10.0,153.55,153.51,10.0]
[1728997152294,10.0,153.56,153.53,3.2574]
[1728997152494,15.2,153.57,153.53,13.2574]
[1728997153092,5.2,153.57,153.55,3.257]
[1728997153294,10.0,153.6,153.56,10.0]
[1728997153694,10.0,153.6,153.56,13.2568]
[1728997156993,10.0,153.6,153.56,10.0]
[1728997157196,10.0,153.6,153.57,3.2566]
[1728997157799,10.0,153.59,153.53,10.0]
[1728997158002,10.0,153.56,153.54,3.2571]
[1728997158799,10.0,153.56,153.53,3.2573]
[1728997159599,10.0,153.56,153.52,10.0]
[1728997159600,5.2,153.62,153.54,13.2572]
[1728997159904,10.0,153.59,153.54,13.2572]
[1728997160893,10.0,153.56,153.53,3.2573]
[1728997161092,10.0,153.56,153.52,12.7936]
[1728997161305,10.0,153.56,153.52,16.0512]
[1728997161793,3.2565,153.58,153.52,16.0512]
[1728997161794,10.0,153.57,153.52,16.0512]
[1728997168306,10.0,153.57,153.53,3.2574]
[1728997168503,10.0,153.57,153.53,13.2574]
[1728997170109,10.0,153.57,153.53,3.2574]
[1728997173004,10.0,153.57,153.52,12.7936]
[1728997173211,10.0,153.57,153.53,3.2573]
[1728997176408,10.0,153.57,153.52,16.0512]
[1728997177110,13.2567,153.57,153.52,12.7936]
[1728997178411,13.2567,153.57,153.52,16.0512]
[1728997179210,10.0,153.57,153.52,12.7936]
[1728997179412,10.0,153.57,153.53,3.2573]
[1728997179610,10.0,153.57,153.53,13.2573]
[1728997181812,10.0,153.57,153.53,10.0]
[1728997182012,15.18,153.59,153.54,3.2571]
[1728997182916,18.4362,153.59,153.54,3.2571]
[1728997183217,5.18,153.59,153.55,3.257]
[1728997183420,15.18,153.59,153.55,3.257]
[1728997185219,3.24157593,153.58,153.54,3.2571]
[1728997185418,18.4364,153.59,153.54,3.2571]
[1728997186220,8.4364,153.59,153.54,3.2571]
[1728997186426,10.0,153.58,153.54,3.2571]
[1728997187821,13.23517221,153.58,153.52,2.7936]
[1728997188015,16.49167221,153.58,153.53,13.2573]
[1728997193822,13.2564,153.58,153.53,10.0]
[1728997194218,16.48799081,153.58,153.53,10.0]
[1728997194421,16.48799081,153.58,153.53,13.2573]
[1728997195715,19.29929344,153.66,153.55,10.0]
[1728997195922,19.29929344,153.66,153.52,2.7936]
[1728997195923,10.0,153.62,153.57,10.0]
[1728997196121,5.18,153.61,153.57,10.0]
[1728997196321,8.4359,153.61,153.57,10.0]
[1728997197522,8.4359,153.61,153.57,13.2565]
[1728997197826,10.0,153.6,153.57,3.2565]
[1728997198022,13.256,153.6,153.57,3.2565]
[1728997198226,10.0,153.6,153.57,3.2565]
[1728997198427,10.0,153.59,153.56,3.2567]
[1728997198726,10.0,153.59,153.54,10.0]
[1728997199128,10.0,153.59,153.56,3.2567]
[1728997200226,10.0,153.57,153.52,4.2202]
[1728997200430,10.0,153.57,153.54,3.2572]
[1728997200624,5.18,153.61,153.53,10.0]
[1728997200829,19.29929344,153.66,153.57,10.0]
[1728997201133,16.05871515,153.66,153.62,10.0]
[1728997201328,3.24257126,153.67,153.62,10.0]
[1728997201523,15.18,153.68,153.62,10.0]
[1728997201524,15.18,153.68,153.63,3.2552]
[1728997201724,10.0,153.65,153.59,4.0007]
[1728997201929,10.0,153.65,153.6,10.0]
[1728997202935,10.0,153.65,153.6,13.2559]
[1728997203331,10.0,153.62,153.59,3.2561]
[1728997203635,10.0,153.62,153.57,10.0]
[1728997203834,10.0,153.6,153.56,15.18]
[1728997204229,10.0,153.6,153.57,3.2564]
[1728997204435,10.0,153.59,153.55,5.18]
[1728997204631,10.0,153.59,153.53,4.0021]
[1728997204632,10.0,153.57,153.53,4.0021]
[1728997204830,3.25820752,153.66,153.53,2.6356]
[1728997204831,10.0,153.56,153.53,2.6356]
[1728997207030,10.0,153.57,153.53,12.6356]
[1728997207834,10.0,153.57,153.53,2.6356]
[1728997209134,6.53426262,153.58,153.53,2.6356]
[1728997209333,10.0,153.57,153.53,2.6356]
[1728997209539,10.0,153.57,153.53,4.6356]
[1728997210038,10.0,153.57,153.53,7.8931]
[1728997210637,10.0,153.56,153.53,4.6356]
[1728997210941,10.0,153.54,153.53,2.0]
[1728997211638,5.18,153.59,153.53,2.0]
[1728997211639,10.0,153.55,153.53,2.0]
[1728997212935,3.2567,153.57,153.53,12.0]
[1728997212936,10.0,153.57,153.53,12.0]
[1728997213136,3.21758149,153.58,153.54,10.0]
[1728997213642,3.21758149,153.58,153.54,13.2572]
[1728997214241,10.0,153.57,153.53,2.0]
[1728997214445,10.0,153.57,153.53,5.2574]
[1728997215344,10.0,153.57,153.54,3.2572]
[1728997216450,10.0,153.57,153.53,5.2574]
[1728997218244,10.0,153.56,153.53,5.2574]
[1728997219441,10.0,153.56,153.53,2.0]
[1728997220449,10.0,153.58,153.54,10.0]
[1728997220645,8.4362,153.59,153.53,2.0]
[1728997220646,16.05871515,153.66,153.57,10.0]
[1728997220950,0.99575923,153.65,153.61,10.0]
[1728997221147,10.0,153.66,153.61,10.0]
[1728997221339,15.18,153.67,153.62,10.0]
[1728997222149,10.0,153.67,153.62,10.0]
[1728997222744,10.0,153.67,153.63,3.2553]
[1728997223248,10.0,153.67,153.62,10.0]
[1728997223452,10.0,153.67,153.62,13.2555]
[1728997223453,13.2545,153.67,153.62,13.2555]
[1728997223839,3.2545,153.67,153.62,3.2555]
[1728997225153,5.18,153.67,153.63,3.2553]
[1728997227954,8.4345,153.67,153.63,3.2553]
[1728997228155,8.4345,153.67,153.62,3.2554]
[1728997228752,3.2548,153.66,153.62,3.2554]
[1728997229454,3.2548,153.66,153.61,3.2557]
[1728997230952,20.79,153.68,153.6,2.6562]
[1728997231158,5.16,153.7,153.63,15.63]
[1728997231661,8.4139,153.7,153.65,3.2548]
[1728997232157,95.12808895,153.72,153.63,15.63]
[1728997232346,5.16,153.71,153.66,3.2545]
[1728997232551,5.16,153.71,153.65,15.63]
[1728997233754,5.16,153.71,153.67,3.2544]
[1728997234957,3.254,153.7,153.65,3.2549]
[1728997235150,18.884,153.7,153.65,3.2549]
[1728997235552,8.4137,153.71,153.67,3.2545]
[1728997235749,5.16,153.71,153.67,3.2545]
[1728997236555,76.18863241,153.72,153.69,3.254]
[1728997236957,76.18863241,153.72,153.66,2.6643]
[1728997237154,3.28971166,153.74,153.67,15.63]
[1728997237360,3.28971166,153.74,153.67,16.9459]
[1728997237556,5.16,153.75,153.67,16.9459]
[1728997238061,8.47370778,153.75,153.67,16.9459]
[1728997238863,11.72650778,153.75,153.69,3.254]
[1728997239558,15.63,153.77,153.71,3.2535]
[1728997239765,6.15472345,153.76,153.71,3.2535]
[1728997239959,5.16,153.76,153.69,20.79]
[1728997240157,5.16,153.76,153.72,3.2533]
[1728997240559,5.16,153.76,153.69,5.16]
[1728997240855,15.63,153.72,153.67,1.3159]
[1728997241060,15.63,153.7,153.66,2.6643]
[1728997241760,18.884,153.7,153.66,2.6643]
[1728997242262,15.63,153.7,153.66,2.6643]
[1728997243164,15.63,153.7,153.66,5.9189]
[1728997243760,18.8839,153.7,153.66,2.6643]
[1728997244661,15.63,153.7,153.66,2.6643]
[1728997245565,18.82988478,153.7,153.66,2.6643]
[1728997245863,15.63,153.68,153.62,1.349]
[1728997246065,3.2547,153.66,153.62,1.349]
[1728997246568,15.63,153.68,153.62,1.349]
[1728997246862,3.2546,153.67,153.62,1.349]
[1728997247263,3.2546,153.67,153.62,4.6045]
[1728997247662,3.2547,153.66,153.62,1.349]
[1728997247864,18.8847,153.66,153.6,5.9477]
[1728997248465,18.8847,153.66,153.6,2.6919]
[1728997248666,18.8847,153.66,153.61,3.2557]
[1728997252066,15.63,153.66,153.61,3.2557]
[1728997252266,5.16,153.67,153.6,2.6919]
[1728997252471,5.16,153.67,153.6,18.3219]
[1728997252967,8.4146,153.67,153.6,18.3219]
[1728997253168,20.79,153.7,153.61,15.63]
[1728997253371,20.79,153.7,153.64,3.2549]
[1728997253566,15.63,153.72,153.63,20.79]
[1728997253878,5.16,153.72,153.63,20.79]
[1728997254766,8.4133,153.72,153.66,3.2543]
[1728997255166,5.16,153.72,153.63,20.79]
[1728997255569,3.2534,153.71,153.65,3.2545]
[1728997258071,20.79,153.72,153.63,15.63]
[1728997258278,15.63,153.7,153.63,5.16]
[1728997258472,18.9476143,153.7,153.63,5.16]
[1728997258777,3.2538,153.69,153.63,8.4148]
[1728997258973,3.2538,153.69,153.63,5.16]
[1728997259270,18.9476143,153.7,153.64,3.2547]
[1728997259577,15.63,153.7,153.64,3.2547]
[1728997260070,18.825867,153.7,153.64,3.2547]
[1728997260468,3.2538,153.69,153.64,3.2547]
[1728997261069,15.63,153.7,153.63,5.16]
[1728997261374,5.16,153.72,153.63,20.79]
[1728997261375,20.79,153.72,153.63,20.79]
[1728997261971,20.79,153.72,153.66,3.2542]
[1728997261972,24.0433,153.72,153.66,3.2542]
[1728997263184,20.79,153.72,153.63,20.79]
[1728997263369,15.63,153.69,153.62,1.4265]
[1728997263574,3.27822353,153.68,153.64,3.2548]
[1728997263775,3.27822353,153.68,153.62,1.4265]
[1728997264080,15.63,153.69,153.62,1.4265]
[1728997264277,15.63,153.67,153.6,7.8519]
[1728997264475,15.63,153.67,153.6,2.6919]
[1728997264678,3.2547,153.65,153.6,5.9474]
[1728997264875,5.16,153.68,153.6,18.3219]
[1728997265382,8.4141,153.68,153.62,3.2551]
[1728997265675,5.16,153.68,153.62,3.2551]
[1728997265880,3.2546,153.66,153.6,5.9474]
[1728997266269,15.63,153.67,153.6,2.6919]
[1728997266581,5.16,153.68,153.61,15.63]
[1728997266778,5.16,153.68,153.61,17.0098]
[1728997267379,3.25803983,153.69,153.63,15.63]
[1728997267681,5.16,153.71,153.63,15.63]
[1728997267883,8.4133,153.71,153.65,3.2545]
[1728997268975,3.2539,153.69,153.62,20.79]
[1728997269180,15.63,153.69,153.62,5.16]
[1728997269879,15.63,153.69,153.63,3.2549]
[1728997269880,18.8838,153.69,153.63,3.2549]
[1728997270684,3.2543,153.67,153.62,8.4151]
[1728997270881,3.2543,153.67,153.61,1.3798]
[1728997270882,15.63,153.67,153.6,7.8519]
[1728997271079,20.79,153.67,153.6,7.8519]
[1728997271386,3.2545,153.66,153.61,3.2554]
[1728997272380,18.8846,153.65,153.6,2.6919]
[1728997272678,15.63,153.65,153.6,2.6919]
[1728997272884,15.63,153.63,153.57,6.509]
[1728997273281,18.8851,153.63,153.58,3.2559]
[1728997273582,15.63,153.63,153.57,6.509]
[1728997273782,15.63,153.63,153.59,3.2558]
[1728997273978,15.63,153.63,153.57,6.509]
[1728997274581,15.63,153.63,153.58,3.2559]
[1728997276075,15.63,153.63,153.57,6.509]
[1728997276280,18.8851,153.63,153.57,9.7651]
[1728997276580,18.8851,153.63,153.57,6.509]
[1728997277285,15.63,153.67,153.58,15.63]
[1728997277680,5.16,153.67,153.6,15.63]
[1728997277985,5.16,153.67,153.57,6.509]
[1728997277986,3.2539,153.69,153.64,3.2548]
[1728997278484,5.16,153.7,153.65,3.2545]
[1728997278687,5.16,153.72,153.64,15.63]
[1728997279198,20.79,153.72,153.63,1.4175]
[1728997279682,3.2535,153.71,153.65,3.2545]
[1728997281088,18.883,153.73,153.67,3.2541]
[1728997281284,20.79,153.73,153.67,3.2541]
[1728997281793,24.04271733,153.73,153.67,3.2541]
[1728997282093,18.87687503,153.77,153.68,15.63]
[1728997282284,15.63,153.79,153.7,15.63]
[1728997282486,3.2523,153.76,153.71,3.2533]
[1728997283390,3.2522,153.77,153.72,3.2531]
[1728997284091,3.2523,153.76,153.72,3.2531]
[1728997284789,3.2523,153.76,153.69,5.16]
[1728997284997,3.2526,153.75,153.71,3.2533]
[1728997285197,15.63,153.74,153.65,15.63]
[1728997285394,15.63,153.74,153.66,5.16]
[1728997285593,3.2533,153.72,153.67,3.2541]
[1728997286191,3.2535,153.71,153.66,3.2543]
[1728997286490,5.16,153.74,153.65,15.63]
[1728997286891,5.16,153.75,153.65,15.63]
[1728997287292,5.16,153.75,153.67,15.63]
[1728997287492,5.16,153.75,153.68,5.14]
[1728997287894,5.14,153.77,153.69,25.01]
[1728997288099,5.14,153.77,153.69,27.7914]
[1728997288699,8.3922,153.77,153.71,3.2532]
[1728997289000,5.14,153.77,153.71,3.2532]
[1728997290406,3.2523,153.76,153.71,3.2532]
[1728997290805,5.14,153.77,153.72,3.253]
[1728997291110,5.14,153.77,153.69,29.1167]
[1728997292615,3.252,153.78,153.72,3.253]
[1728997293205,3.2523,153.76,153.69,29.1167]
[1728997293412,8.46173281,153.79,153.69,4.1067]
[1728997294001,3.2521,153.77,153.71,3.2532]
[1728997295916,3.2521,153.77,153.72,3.253]
[1728997296506,3.2521,153.77,153.72,3.2531]
[1728997297212,3.252,153.78,153.72,3.2531]
[1728997297515,3.252,153.78,153.73,3.2528]
[1728997299612,3.252,153.78,153.69,4.1067]
[1728997299812,3.252,153.78,153.74,3.2526]
[1728997301114,3.2524,153.76,153.72,3.253]
[1728997302112,3.253,153.73,153.69,2.7814]
[1728997302311,3.253,153.73,153.67,5.14]
[1728997302706,3.2532,153.72,153.68,3.2538]
[1728997304117,3.253,153.73,153.68,3.2538]
[1728997304808,5.14,153.75,153.7,3.2534]
[1728997304809,3.2526,153.75,153.7,3.2534]
[1728997307015,3.2523,153.76,153.67,5.14]
[1728997307318,8.3923,153.76,153.67,5.14]
[1728997307520,3.2525,153.75,153.71,3.2532]
[1728997308407,5.14,153.76,153.73,3.2527]
[1728997308615,5.14,153.76,153.67,5.14]
[1728997308616,5.14,153.76,153.68,25.01]
[1728997308810,3.32173281,153.79,153.68,25.01]
[1728997308811,8.46173281,153.79,153.68,25.01]
[1728997309009,5.14,153.79,153.68,25.01]
[1728997309213,3.252,153.78,153.73,3.2528]
[1728997309618,3.252,153.78,153.68,25.01]
[1728997309815,3.252,153.78,153.7,15.63]
[1728997310018,3.252,153.78,153.73,3.2528]
[1728997310714,23.96698763,153.79,153.71,2.6757]
[1728997310916,27.21878763,153.79,153.73,3.2528]
[1728997311322,27.21868763,153.79,153.74,3.2526]
[1728997312122,3.252,153.78,153.73,3.2528]
[1728997313120,3.2522,153.77,153.72,3.253]
[1728997314112,23.96698763,153.79,153.71,7.8157]
[1728997314312,3.2524,153.76,153.71,11.069]
[1728997315123,23.96698763,153.79,153.71,7.8157]
[1728997315323,5.14,153.79,153.72,15.63]
[1728997315617,15.63,153.83,153.74,15.63]
[1728997315818,5.14,153.82,153.74,15.63]
[1728997316222,3.2512,153.81,153.76,3.2522]
[1728997316614,3.2512,153.81,153.74,15.63]
[1728997316819,3.2512,153.81,153.76,3.2521]
[1728997317728,3.2512,153.81,153.76,3.2522]
[1728997318122,3.2512,153.81,153.74,15.63]
[1728997318627,3.2512,153.81,153.76,3.2522]
[1728997319324,3.2512,153.81,153.74,15.63]
[1728997319325,3.2512,153.81,153.77,3.252]
[1728997320528,3.2512,153.81,153.74,15.63]
[1728997320831,5.14,153.82,153.74,15.63]
[1728997321131,3.2517,153.79,153.72,15.63]
[1728997322031,3.2517,153.79,153.75,3.2523]
[1728997322435,3.26393965,153.81,153.77,3.252]
[1728997323127,15.63,153.85,153.76,15.63]
[1728997323434,0.99416962,153.83,153.77,2.7808]
[1728997323932,9.79684527,153.89,153.77,2.7808]
[1728997323933,3.29764527,153.89,153.78,15.63]
[1728997324123,0.9941006,153.88,153.83,3.2507]
[1728997324630,4.2439006,153.88,153.83,3.2507]
[1728997324826,3.2498,153.88,153.82,15.63]
[1728997325329,3.2498,153.88,153.79,20.77]
[1728997325531,15.63,153.87,153.79,20.77]
[1728997325730,3.2503,153.86,153.79,20.77]
[1728997326238,3.25,153.87,153.79,20.77]
[1728997326443,20.77,153.89,153.81,15.63]
[1728997327126,3.2499,153.88,153.83,3.2506]
[1728997327329,3.2499,153.88,153.81,15.63]
[1728997327741,3.2499,153.88,153.82,3.2508]
[1728997328243,3.2499,153.88,153.81,15.63]
[1728997328244,8.3896,153.89,153.81,15.63]
[1728997328442,8.3896,153.89,153.82,1.2898]
[1728997328839,8.3896,153.89,153.83,2.7088]
[1728997329139,8.3896,153.89,153.84,3.2506]
[1728997329442,3.19586102,153.91,153.83,18.3388]
[1728997329443,8.3893,153.9,153.83,18.3388]
[1728997329845,8.3893,153.9,153.85,3.2503]
[1728997330937,15.63,153.93,153.83,18.3388]
[1728997331142,5.14,153.92,153.83,18.3388]
[1728997331546,5.14,153.92,153.86,3.25]
[1728997332047,3.2492,153.91,153.86,3.25]
[1728997332346,15.63,153.93,153.85,15.63]
[1728997332649,15.63,153.95,153.87,15.63]
[1728997332844,15.63,153.95,153.9,3.2493]
[1728997333346,15.63,153.95,153.89,3.2494]
[1728997333747,18.8784,153.95,153.89,3.2494]
[1728997333948,15.63,153.95,153.88,3.2496]
[1728997334147,15.63,153.93,153.86,5.14]
[1728997334344,3.2489,153.92,153.86,5.14]
[1728997335052,15.63,153.93,153.87,3.2498]
[1728997335241,8.37580729,153.96,153.86,5.14]
[1728997335442,24.00580729,153.96,153.87,15.63]
[1728997335846,3.2484,153.95,153.89,3.2494]
[1728997336253,3.2484,153.95,153.88,1.3919]
[1728997336452,15.63,153.98,153.88,1.3919]
[1728997336653,8.3879,153.97,153.89,18.3935]
[1728997336841,8.38959369,153.97,153.89,2.7635]
[1728997337048,3.2488,153.93,153.89,2.7635]
[1728997337242,15.63,153.95,153.89,2.7635]
[1728997337446,15.63,153.93,153.89,2.7635]
[1728997337741,15.63,153.93,153.86,5.14]
[1728997338050,15.63,153.93,153.81,4.1865]
[1728997338051,15.63,153.89,153.81,4.1865]
[1728997338251,3.2499,153.88,153.81,4.1865]
[1728997338749,18.8795,153.89,153.81,4.1865]
[1728997339953,18.83018999,153.89,153.81,4.1865]
[1728997340150,3.2501,153.87,153.81,4.1865]
[1728997341149,3.2497,153.88,153.81,4.1865]
[1728997341358,15.63,153.89,153.83,3.2507]
[1728997341663,15.63,153.89,153.82,15.63]
[1728997342551,18.8796,153.89,153.82,15.63]
[1728997342857,20.77,153.89,153.82,15.63]
[1728997343058,23.98109654,153.89,153.82,15.63]
[1728997343456,23.98109654,153.89,153.82,3.2509]
[1728997344361,3.2503,153.86,153.81,4.1865]
[1728997344656,23.98109654,153.89,153.81,4.1865]
[1728997344657,15.63,153.87,153.81,2.7816]
[1728997344851,3.2508,153.84,153.78,8.3917]
[1728997345162,15.63,153.83,153.78,5.14]
[1728997345352,15.63,153.83,153.75,9.3351]
[1728997346558,3.2511,153.82,153.77,3.2519]
[1728997346958,3.2513,153.81,153.75,9.3351]
[1728997347558,3.2513,153.81,153.75,12.5875]
[1728997348058,15.63,153.79,153.72,3.253]
[1728997348554,15.63,153.79,153.7,23.5209]
[1728997348753,15.63,153.79,153.72,3.2531]
[1728997349165,3.252,153.78,153.72,3.2531]
[1728997349364,15.63,153.79,153.7,18.4009]
[1728997349575,18.91021611,153.8,153.7,2.7709]
[1728997349864,3.252,153.78,153.72,3.253]
[1728997350556,8.372,153.78,153.72,3.253]
[1728997350758,5.12,153.78,153.74,3.2525]
[1728997351061,8.3715,153.8,153.73,15.63]
[1728997351261,5.12,153.8,153.75,3.2523]
[1728997351656,5.12,153.8,153.73,15.63]
[1728997351960,15.63,153.82,153.73,15.63]
[1728997352160,5.12,153.81,153.71,15.63]
[1728997352367,22.14672804,153.8,153.74,3.2526]
[1728997353365,22.14672804,153.8,153.75,3.2524]
[1728997353863,20.75,153.81,153.73,18.8827]
[1728997354060,5.12,153.81,153.75,15.63]
[1728997354371,5.12,153.84,153.79,15.63]
[1728997354562,5.12,153.86,153.79,15.63]
[1728997355465,20.75,153.86,153.77,6.4878]
[1728997355659,15.63,153.83,153.77,6.4878]
[1728997355859,15.63,153.83,153.76,2.6217]
[1728997356060,3.2511,153.82,153.77,3.252]
[1728997357766,5.12,153.86,153.76,2.6217]
[1728997357964,15.63,153.84,153.76,2.6217]
[1728997358663,18.8807,153.84,153.78,3.2516]
[1728997358865,15.63,153.86,153.77,15.63]
[1728997359174,5.12,153.87,153.83,3.2507]
[1728997359467,5.12,153.87,153.81,15.63]
[1728997359861,5.12,153.87,153.79,15.63]
[1728997360061,8.3701,153.87,153.82,3.2509]
[1728997360371,5.12,153.87,153.79,15.63]
[1728997360555,5.12,153.87,153.78,5.12]
[1728997360556,5.12,153.87,153.81,15.63]
[1728997360755,5.12,153.88,153.84,3.2504]
[1728997360967,5.12,153.88,153.81,15.63]
[1728997361263,5.12,153.88,153.84,3.2504]
[1728997361466,5.12,153.88,153.81,15.63]
[1728997361764,5.12,153.88,153.82,2.7081]
[1728997364065,5.12,153.88,153.82,5.9589]
[1728997364259,5.12,153.93,153.82,2.7081]
[1728997364468,5.12,153.93,153.89,3.2495]
[1728997364661,5.12,153.93,153.88,15.63]
[1728997365264,5.12,153.96,153.88,15.63]
[1728997365467,5.12,153.96,153.9,15.63]
[1728997365869,5.12,153.96,153.91,3.2489]
[1728997366266,20.75,153.96,153.89,2.7007]
[1728997366467,15.63,153.94,153.86,5.12]
[1728997366670,15.63,153.89,153.83,1.3941]
[1728997366873,15.63,153.88,153.81,2.671]
[1728997367759,15.63,153.88,153.82,3.2508]
[1728997368275,15.63,153.88,153.81,2.671]
[1728997368469,15.63,153.88,153.83,3.2507]
[1728997370067,15.63,153.88,153.81,2.671]
[1728997370268,18.8798,153.88,153.82,3.2509]
[1728997372474,15.63,153.88,153.83,3.2507]
[1728997372674,15.63,153.88,153.81,2.671]
[1728997372872,15.63,153.88,153.83,3.2508]
[1728997373077,15.63,153.88,153.81,2.671]
[1728997373377,5.12,153.89,153.83,3.2507]
[1728997373576,15.63,153.9,153.81,2.671]
[1728997373770,5.12,153.89,153.81,2.671]
[1728997373967,5.12,153.89,153.86,3.25]
[1728997374367,5.12,153.89,153.81,2.671]
[1728997374368,5.12,153.89,153.84,15.63]
[1728997374578,20.75,153.92,153.86,3.25]
[1728997375077,6.4929,154.04,153.84,15.63]
[1728997375276,18.8785,153.94,153.87,3.2498]
[1728997375577,5.12,153.93,153.84,15.63]
[1728997375966,5.12,153.93,153.89,3.2493]
[1728997376371,5.12,153.93,153.86,15.63]
[1728997377477,5.12,153.93,153.88,3.2497]
[1728997377678,5.12,153.93,153.86,15.63]
[1728997377972,5.12,153.93,153.89,3.2494]
[1728997378177,5.12,153.93,153.88,15.63]
[1728997379381,5.12,153.93,153.9,3.2491]
[1728997379875,5.12,153.93,153.86,15.63]
[1728997380786,5.12,153.93,153.88,3.2497]
[1728997381084,5.12,153.93,153.86,15.63]
[1728997381687,5.12,153.93,153.85,1.2856]
[1728997381876,15.63,153.92,153.85,1.2856]
[1728997382070,15.63,153.9,153.81,18.301]
[1728997382277,15.63,153.88,153.81,2.671]
[1728997382877,15.63,153.88,153.83,3.2506]
[1728997385485,18.8797,153.88,153.81,2.671]
[1728997385695,18.8797,153.88,153.82,3.251]
[1728997386991,18.8797,153.88,153.83,3.2506]
[1728997386992,15.63,153.88,153.83,3.2506]
[1728997387289,73.42908277,153.98,153.83,15.63]
[1728997387492,3.2488,153.93,153.87,3.2499]
[1728997387691,5.18,153.92,153.87,3.2499]
[1728997388192,3.2488,153.93,153.87,3.2499]
[1728997388487,5.18,153.92,153.88,3.2497]
[1728997392686,5.18,153.92,153.87,3.2498]
[1728997392989,8.4288,153.93,153.87,3.2498]
[1728997393192,5.18,153.93,153.85,15.63]
[1728997394588,5.18,153.93,153.88,3.2496]
[1728997395291,5.18,153.93,153.89,3.2495]
[1728997395486,3.249,153.92,153.84,5.18]
[1728997395687,5.18,153.93,153.86,3.25]
[1728997395894,5.18,153.93,153.84,5.18]
[1728997396196,8.4288,153.93,153.84,5.18]
[1728997396387,8.4288,153.93,153.87,3.2498]
[1728997397798,3.2489,153.92,153.87,3.2498]
[1728997398094,3.2489,153.92,153.88,3.2497]
[1728997398095,6.43824646,153.92,153.88,3.2497]
[1728997398792,3.18934646,153.92,153.88,3.2497]
[1728997398994,3.2487,153.93,153.88,3.2497]
[1728997399599,3.19519728,153.92,153.88,3.2497]
[1728997400190,3.19519728,153.92,153.85,15.63]
[1728997400493,24.0586,153.94,153.89,3.2494]
[1728997400994,27.34546368,153.94,153.89,3.2494]
[1728997401493,24.09686368,153.94,153.89,3.2494]
[1728997401791,3.2489,153.92,153.88,3.2496]
[1728997402194,3.2488,153.93,153.89,3.2495]
[1728997402391,24.09686368,153.94,153.85,15.63]
[1728997403198,27.34546368,153.94,153.89,3.2494]
[1728997404787,3.28686368,153.94,153.85,15.63]
[1728997404993,15.63,154.01,153.92,15.63]
[1728997405397,15.63,154.01,153.97,3.2477]